bitfinex-derivatives/quotes_BTCF0:USTF0_20250119
["timestamp","ask_amount","ask_price","bid_price","bid_amount"]
[1737291798871,0.18914135,105240.0,105230.0,0.047593]
[1737291798872,0.03436146,105240.0,105230.0,0.047593]
[1737291799068,0.03436146,105240.0,105230.0,0.14223313]
[1737291800871,0.450684,105250.0,105230.0,0.3693621]
[1737291801366,0.450684,105250.0,105240.0,0.047588]
[1737291801566,0.450684,105250.0,105240.0,0.05532813]
[1737291803067,0.450684,105250.0,105240.0,0.09332706]
[1737291803268,0.4031,105250.0,105240.0,0.09332706]
[1737291803868,0.450684,105250.0,105240.0,0.09332706]
[1737291804971,0.3608,105250.0,105240.0,0.09332706]
[1737291805476,0.3608,105250.0,105240.0,0.09332698]
[1737291806070,0.3608,105250.0,105240.0,0.10281116]
[1737291806779,0.408384,105250.0,105240.0,0.10281116]
[1737291806967,0.408384,105250.0,105240.0,0.10281114]
[1737291809271,0.047584,105250.0,105240.0,0.10281114]
[1737291809475,0.408384,105250.0,105240.0,0.13833114]
[1737291815582,0.047584,105250.0,105240.0,0.13833114]
[1737291815885,0.408384,105250.0,105240.0,0.13833114]
[1737291816383,0.408384,105250.0,105240.0,0.09074314]
[1737291817079,0.408384,105250.0,105240.0,0.1572536]
[1737291818280,0.408384,105250.0,105240.0,0.15249088]
[1737291818482,0.408384,105250.0,105240.0,0.15725368]
[1737291818981,0.408384,105250.0,105240.0,0.1572537]
[1737291819680,0.408384,105250.0,105240.0,0.14951418]
[1737291820875,0.408384,105250.0,105230.0,0.22712897]
[1737291821076,0.047597,105220.0,105210.0,0.28375763]
[1737291821381,0.769197,105220.0,105210.0,0.29149806]
[1737291822185,0.769197,105220.0,105210.0,0.29191806]
[1737291822682,0.769197,105220.0,105210.0,0.00816043]
[1737291823078,0.769197,105220.0,105210.0,0.00816114]
[1737291823973,0.769197,105220.0,105210.0,0.02020918]
[1737291824183,0.769197,105220.0,105210.0,0.00816114]
[1737291825175,0.769197,105220.0,105210.0,0.00816117]
[1737291826478,0.769197,105220.0,105210.0,1.7e-07]
[1737291826680,0.047611,105190.0,105180.0,0.28375763]
[1737291826880,0.769211,105190.0,105180.0,0.28375763]
[1737291827789,0.769211,105190.0,105170.0,0.0467]
[1737291827790,0.047615,105180.0,105170.0,0.0467]
[1737291828081,0.408415,105180.0,105170.0,0.0467]
[1737291828286,0.3608,105180.0,105160.0,0.0846]
[1737291828584,0.40842,105170.0,105160.0,0.0846]
[1737291829089,0.40842,105170.0,105160.0,0.10856]
[1737291829391,0.40842,105170.0,105160.0,0.06656]
[1737291829690,0.40842,105170.0,105160.0,0.07883655]
[1737291830092,0.40842,105170.0,105160.0,0.11686655]
[1737291841182,0.40842,105170.0,105160.0,0.10459]
[1737291841386,0.047169,105150.0,105140.0,0.0429]
[1737291841597,0.768769,105150.0,105140.0,0.0429]
[1737291841896,0.768769,105150.0,105140.0,0.0551434]
[1737291842784,0.768769,105150.0,105130.0,0.046]
[1737291842988,0.408434,105140.0,105130.0,0.0907]
[1737291844302,0.408434,105140.0,105130.0,0.10252556]
[1737291844601,0.408434,105140.0,105130.0,0.05652556]
[1737291847099,0.408434,105140.0,105130.0,0.09456556]
[1737291847596,0.408434,105140.0,105130.0,0.09754535]
[1737291848097,0.3608,105160.0,105130.0,0.51075053]
[1737291848299,0.50285497,105170.0,105150.0,0.3608]
[1737291848596,0.04904481,105180.0,105160.0,0.135425]
[1737291848799,0.00142681,105180.0,105170.0,0.09212]
[1737291848992,0.55046697,105190.0,105170.0,0.09986514]
[1737291849400,0.55046697,105190.0,105170.0,0.46066514]
[1737291849594,0.14205497,105190.0,105180.0,0.047615]
[1737291849905,0.07355497,105190.0,105180.0,0.41615983]
[1737291850106,0.408406,105210.0,105190.0,0.047611]
[1737291850288,0.408406,105210.0,105190.0,0.05059079]
[1737291850488,0.408406,105210.0,105190.0,0.05535554]
[1737291850887,0.408406,105210.0,105190.0,0.047611]
[1737291851302,0.047598,105220.0,105200.0,0.047606]
[1737291851606,0.408393,105230.0,105210.0,0.047602]
[1737291852696,0.408388,105240.0,105220.0,0.047597]
[1737291852896,0.408388,105240.0,105220.0,0.05533756]
[1737291853098,0.3608,105240.0,105220.0,0.36854056]
[1737291853401,0.3608,105240.0,105230.0,0.047593]
[1737291853599,0.3608,105240.0,105230.0,0.05533356]
[1737291854695,0.3608,105240.0,105230.0,0.05533229]
[1737291855202,0.3608,105240.0,105230.0,0.09262229]
[1737291856811,0.3608,105240.0,105230.0,0.08785965]
[1737291857015,0.3608,105240.0,105230.0,0.09997016]
[1737291858812,0.450685,105250.0,105240.0,0.047588]
[1737291858813,0.3608,105250.0,105240.0,0.047588]
[1737291858996,0.3608,105250.0,105240.0,0.05056465]
[1737291859596,0.3608,105250.0,105240.0,0.05056438]
[1737291859804,0.36222618,105260.0,105240.0,0.05056438]
[1737291860105,0.36222618,105260.0,105240.0,0.41136438]
[1737291861107,0.36222618,105260.0,105240.0,0.41136421]
[1737291861294,0.36222618,105260.0,105240.0,0.05056421]
[1737291861295,0.40980618,105260.0,105240.0,0.05056421]
[1737291861903,0.36222618,105260.0,105240.0,0.00297621]
[1737291862097,0.047588,105240.0,105230.0,0.03729]
[1737291862306,0.408388,105240.0,105230.0,0.03729]
[1737291862501,0.452688,105240.0,105230.0,0.03729]
[1737291862807,0.047593,105230.0,105210.0,0.00142559]
[1737291863002,0.408397,105220.0,105210.0,0.00142559]
[1737291863307,0.7216,105220.0,105180.0,0.45524003]
[1737291863506,0.3608,105190.0,105180.0,0.02109337]
[1737291863700,0.3608,105190.0,105180.0,0.01335157]
[1737291863701,0.408411,105190.0,105180.0,0.01335157]
[1737291864110,0.408411,105190.0,105180.0,0.01632965]
[1737291864502,0.408411,105190.0,105180.0,0.01632962]
[1737291865805,0.408411,105190.0,105180.0,0.06394462]
[1737291866004,0.047611,105190.0,105180.0,0.06394462]
[1737291866603,0.047611,105190.0,105180.0,0.06394452]
[1737291867400,0.3608,105200.0,105180.0,0.06394452]
[1737291867709,0.408407,105200.0,105180.0,0.06394452]
[1737291868007,0.3608,105200.0,105190.0,0.047611]
[1737291868308,0.3608,105200.0,105190.0,0.05058895]
[1737291868804,0.521312,105220.0,105200.0,0.047606]
[1737291869012,0.521312,105220.0,105200.0,0.05058395]
[1737291869201,0.408398,105220.0,105200.0,0.05058395]
[1737291870007,0.408398,105220.0,105200.0,0.41138395]
[1737291871512,0.408398,105220.0,105210.0,0.047602]
[1737291872507,0.408398,105220.0,105180.0,0.09254103]
[1737291872715,0.408411,105190.0,105180.0,0.0520185]
[1737291872915,0.408411,105190.0,105180.0,0.04904103]
[1737291875414,0.408411,105190.0,105180.0,0.06143349]
[1737291877114,0.408411,105190.0,105180.0,0.0661985]
[1737291878317,0.408411,105190.0,105180.0,0.06143349]
[1737291878615,0.408411,105190.0,105180.0,0.0661985]
[1737291879309,0.047611,105190.0,105180.0,0.0661985]
[1737291879513,0.408411,105190.0,105180.0,0.0661985]
[1737291882014,0.4027,105200.0,105190.0,0.047611]
[1737291882015,0.089507,105200.0,105190.0,0.047611]
[1737291882211,0.450307,105200.0,105190.0,0.05237601]
[1737291882411,0.450307,105200.0,105190.0,0.0523758]
[1737291882611,0.450307,105200.0,105190.0,0.0903958]
[1737291884613,0.450307,105200.0,105190.0,0.09337375]
[1737291885011,0.450307,105200.0,105190.0,0.09337365]
[1737291885216,0.563221,105200.0,105190.0,0.09337365]
[1737291885411,0.202421,105200.0,105190.0,0.09337365]
[1737291885618,0.563221,105200.0,105190.0,0.09337365]
[1737291886218,0.112914,105200.0,105190.0,0.09337365]
[1737291886517,0.473714,105200.0,105190.0,0.09337341]
[1737291886714,0.3608,105200.0,105190.0,0.09337341]
[1737291886914,0.74968604,105210.0,105200.0,0.047606]
[1737291887120,0.74968604,105210.0,105200.0,0.05534841]
[1737291888217,0.25498304,105210.0,105200.0,0.05534841]
[1737291888421,0.25498304,105210.0,105200.0,0.05534771]
[1737291890016,0.112914,105210.0,105200.0,0.05534771]
[1737291890324,0.112914,105210.0,105200.0,0.05534714]
[1737291891618,0.112914,105210.0,105200.0,0.06737644]
[1737291891818,0.473714,105210.0,105200.0,0.06737644]
[1737291892014,0.521316,105210.0,105200.0,0.06737644]
[1737291892524,0.55047104,105210.0,105200.0,0.06737644]
[1737291892920,0.14206904,105210.0,105200.0,0.06737644]
[1737291893932,0.59336704,105220.0,105200.0,0.06737644]
[1737291894225,0.59336704,105220.0,105210.0,0.047602]
[1737291894420,0.59336704,105220.0,105210.0,0.05534314]
[1737291898125,0.59336704,105220.0,105210.0,0.05534358]
[1737291899128,0.59336704,105220.0,105210.0,0.00774158]
[1737291899824,0.047602,105210.0,105200.0,0.0120293]
[1737291900021,0.408402,105210.0,105200.0,0.05534803]
[1737291900227,0.408402,105210.0,105200.0,0.05534796]
[1737291901822,0.408402,105210.0,105200.0,0.05534787]
[1737291902031,0.57945356,105210.0,105200.0,0.05534787]
[1737291902437,0.047606,105200.0,105190.0,0.01508535]
[1737291902622,0.451306,105200.0,105180.0,0.00142603]
[1737291902822,0.451211,105190.0,105180.0,0.00142603]
[1737291903022,0.047615,105180.0,105170.0,0.50817334]
[1737291903224,0.408415,105180.0,105170.0,0.50817334]
[1737291903935,0.57946656,105180.0,105170.0,0.22441571]
[1737291904133,0.04762,105170.0,105160.0,0.047625]
[1737291904334,0.047625,105160.0,105150.0,0.090728]
[1737291904536,0.408425,105160.0,105150.0,0.090728]
[1737291904835,0.3608,105160.0,105150.0,0.090728]
[1737291905426,0.3608,105160.0,105150.0,0.137088]
[1737291907438,0.50336608,105160.0,105150.0,0.137088]
[1737291908632,0.3608,105160.0,105150.0,0.15218137]
[1737291910843,0.408425,105160.0,105150.0,0.15218137]
[1737291911137,0.11386084,105180.0,105150.0,0.51298137]
[1737291911333,0.54616608,105190.0,105170.0,0.40842]
[1737291911334,0.14256608,105190.0,105170.0,0.40842]
[1737291911533,0.14256608,105190.0,105180.0,0.452715]
[1737291912443,0.2186873,105200.0,105180.0,0.09667969]
[1737291912444,0.408408,105200.0,105180.0,0.09667969]
[1737291912831,0.408411,105190.0,105180.0,0.00476469]
[1737291913138,0.047615,105180.0,105170.0,0.16904145]
[1737291913334,0.492815,105180.0,105170.0,0.16904145]
[1737291913745,0.536815,105180.0,105160.0,0.16904145]
[1737291913947,0.40842,105170.0,105160.0,0.17380769]
[1737291914235,0.40842,105170.0,105160.0,0.16904145]
[1737291914546,0.40842,105170.0,105160.0,0.17202039]
[1737291914729,0.40842,105170.0,105160.0,0.16904145]
[1737291915240,0.047625,105160.0,105150.0,0.06145337]
[1737291915438,0.408425,105160.0,105150.0,0.0644326]
[1737291917147,0.408425,105160.0,105150.0,0.1120616]
[1737291917352,0.408425,105160.0,105150.0,0.11206152]
[1737291918943,0.408425,105160.0,105150.0,0.06443252]
[1737291920946,0.408425,105160.0,105150.0,0.10247252]
[1737291921137,0.408425,105160.0,105150.0,0.10247247]
[1737291925245,0.408425,105160.0,105150.0,0.10247249]
[1737291929357,0.408425,105160.0,105150.0,0.1072391]
[1737291929655,0.408425,105160.0,105150.0,0.10247249]
[1737291930946,0.55098708,105170.0,105150.0,0.1072391]
[1737291931150,0.55098708,105170.0,105150.0,0.2004671]
[1737291931361,0.047625,105160.0,105150.0,0.1548671]
[1737291931552,0.408425,105160.0,105150.0,0.1072391]
[1737291932774,0.408425,105160.0,105150.0,0.1548681]
[1737291935074,0.50336608,105160.0,105150.0,0.1548681]
[1737291935281,0.14256608,105160.0,105150.0,0.1548681]
[1737291935575,0.14256608,105160.0,105150.0,0.5156681]
[1737291936169,0.14256608,105170.0,105150.0,0.68470955]
[1737291936369,0.14256608,105170.0,105160.0,0.544825]
[1737291936574,0.14256608,105170.0,105160.0,0.55257073]
[1737291937585,0.55240487,105190.0,105170.0,0.04762]
[1737291937885,0.19160487,105190.0,105180.0,0.047615]
[1737291938089,0.19160487,105190.0,105180.0,0.05536073]
[1737291938471,0.55240487,105190.0,105180.0,0.05536073]
[1737291938773,0.55240487,105190.0,105180.0,0.047615]
[1737291938977,0.55240487,105190.0,105180.0,0.09338801]
[1737291939378,0.40983879,105190.0,105180.0,0.26242943]
[1737291941279,0.36222679,105190.0,105180.0,0.26242943]
[1737291941674,0.36222679,105190.0,105180.0,0.21481443]
[1737291941876,0.40983779,105190.0,105180.0,0.21481443]
[1737291942872,0.40983779,105190.0,105180.0,0.21481444]
[1737291944379,0.40983779,105190.0,105180.0,0.23024609]
[1737291944587,0.00142679,105190.0,105180.0,0.27786109]
[1737291944972,0.68316908,105210.0,105190.0,0.047609]
[1737291945174,0.68316908,105210.0,105190.0,0.05058707]
[1737291945175,0.32236908,105210.0,105190.0,0.05058707]
[1737291945479,0.27956908,105210.0,105190.0,0.18815133]
[1737291945782,0.047603,105210.0,105200.0,0.047606]
[1737291945978,0.19016408,105220.0,105200.0,0.36854233]
[1737291946181,0.14256608,105220.0,105210.0,0.047602]
[1737291946375,0.14256608,105220.0,105210.0,0.05534433]
[1737291947676,0.3608,105230.0,105220.0,0.047597]
[1737291947984,0.3608,105230.0,105220.0,0.09783933]
[1737291948782,0.408393,105230.0,105220.0,0.05024233]
[1737291948979,0.408393,105230.0,105220.0,0.04547807]
[1737291949287,0.408393,105230.0,105220.0,0.00297807]
[1737291950078,0.408393,105230.0,105210.0,0.01545741]
[1737291950285,0.543197,105220.0,105210.0,0.00297722]
[1737291950585,0.047602,105210.0,105200.0,0.16904145]
[1737291950883,0.047602,105210.0,105200.0,0.00297759]
[1737291950884,0.408402,105210.0,105200.0,0.00297759]
[1737291951290,0.047602,105210.0,105200.0,0.05058345]
[1737291951585,0.182398,105220.0,105200.0,0.05058345]
[1737291951789,0.0458,105220.0,105210.0,0.047602]
[1737291951989,0.408394,105230.0,105210.0,0.09327945]
[1737291952291,0.408394,105230.0,105210.0,0.04567745]
[1737291952489,0.408394,105230.0,105220.0,0.047597]
[1737291952986,0.047594,105230.0,105220.0,0.047597]
[1737291953687,0.408394,105230.0,105220.0,0.047597]
[1737291955887,0.408394,105230.0,105220.0,0.01515829]
[1737291956085,0.408394,105230.0,105210.0,0.408401]
[1737291956778,0.408394,105230.0,105210.0,0.41137805]
[1737291958076,0.3608,105220.0,105210.0,0.05057805]
[1737291958277,0.408394,105230.0,105210.0,0.05057805]
[1737291958680,0.047597,105220.0,105210.0,0.05057805]
[1737291958879,0.408397,105220.0,105210.0,0.05057805]
[1737291959189,0.408394,105230.0,105210.0,0.05057805]
[1737291959384,0.408394,105230.0,105210.0,0.09687805]
[1737291960187,0.49941495,105240.0,105210.0,0.47738878]
[1737291960393,0.49941495,105240.0,105220.0,0.0916]
[1737291960590,0.49941495,105240.0,105220.0,0.09457705]
[1737291960780,0.49941495,105240.0,105230.0,0.047593]
[1737291961380,0.49941495,105240.0,105230.0,0.05056983]
[1737291964096,0.49941495,105240.0,105230.0,0.00297683]
[1737291964276,0.047593,105230.0,105220.0,0.047596]
[1737291964477,0.452893,105230.0,105220.0,0.05057296]
[1737291965284,0.452893,105230.0,105220.0,0.05533624]
[1737291966092,0.452893,105230.0,105220.0,0.05533627]
[1737291966989,0.452893,105230.0,105220.0,0.10176627]
[1737291967189,0.14399203,105240.0,105220.0,0.46256627]
[1737291967392,0.0310793,105250.0,105240.0,0.047588]
[1737291967587,0.0150207,105260.0,105250.0,0.047584]
[1737291967784,0.141776,105270.0,105260.0,0.047579]
[1737291967984,0.141776,105270.0,105260.0,0.05055603]
[1737291968380,0.094076,105270.0,105260.0,0.05055603]
[1737291969686,0.094076,105270.0,105260.0,0.00297703]
[1737291969995,0.094076,105270.0,105260.0,0.05055507]
[1737291970191,0.094076,105270.0,105260.0,0.08855507]
[1737291970394,0.094076,105270.0,105260.0,0.04097607]
[1737291970896,0.137276,105270.0,105260.0,0.04097607]
[1737291972501,0.498076,105270.0,105260.0,0.04097607]
[1737291972690,0.498076,105270.0,105260.0,0.038]
[1737291973192,0.090776,105270.0,105260.0,0.08855524]
[1737291973496,0.090776,105270.0,105260.0,0.09331703]
[1737291973999,0.090776,105270.0,105260.0,0.45411703]
[1737291974394,0.20444374,105270.0,105260.0,0.45411703]
[1737291974891,0.56524374,105270.0,105260.0,0.04573803]
[1737291976796,0.56524374,105270.0,105260.0,0.04097624]
[1737291977298,0.56524374,105270.0,105260.0,0.038]
[1737291977798,0.56524374,105270.0,105260.0,0.08855508]
[1737291977995,0.56524374,105270.0,105260.0,0.08855507]
[1737291979002,0.56524374,105270.0,105260.0,0.10336122]
[1737291979405,0.51766774,105270.0,105260.0,0.10336122]
[1737291980811,0.15686774,105270.0,105260.0,0.10336122]
[1737291980992,0.15686774,105270.0,105260.0,0.46416122]
[1737291982291,0.0432,105270.0,105260.0,0.46416122]
[1737291983202,0.090775,105270.0,105260.0,0.46416122]
[1737291983608,0.56524274,105270.0,105260.0,0.10336122]
[1737291983803,0.56524274,105270.0,105260.0,0.46892284]
[1737291983804,0.11366774,105270.0,105260.0,0.46892284]
[1737291984104,0.0827568,105270.0,105260.0,0.56052284]
[1737291984293,0.00142567,105280.0,105270.0,0.047575]
[1737291984493,0.00142567,105280.0,105270.0,0.46261269]
[1737291985801,0.00142567,105280.0,105270.0,0.46261073]
[1737291987206,0.1,105300.0,105290.0,0.047566]
[1737291987394,0.1,105300.0,105290.0,0.41610173]
[1737291987600,0.1,105300.0,105290.0,0.46010173]
[1737291987798,0.1,105300.0,105290.0,0.46010095]
[1737291988314,0.147561,105300.0,105290.0,0.46010095]
[1737291989809,0.147561,105300.0,105290.0,0.09930113]
[1737291990808,0.147561,105300.0,105290.0,0.05173513]
[1737291991194,0.147561,105300.0,105290.0,0.04697505]
[1737291991604,0.147561,105300.0,105290.0,0.00297505]
[1737291991804,0.147561,105300.0,105290.0,0.00297522]
[1737291992008,0.5901,105300.0,105280.0,0.408367]
[1737291992310,0.408366,105290.0,105280.0,0.00297526]
[1737291992614,0.047574,105280.0,105260.0,0.66374422]
[1737291992809,0.047566,105290.0,105280.0,0.04757]
[1737291993006,0.047566,105290.0,105280.0,0.05054555]
[1737291994415,0.047566,105290.0,105280.0,0.00297555]
[1737291994809,0.047566,105290.0,105280.0,0.04943555]
[1737291995818,0.047566,105290.0,105280.0,0.04943538]
[1737291997518,0.047566,105290.0,105280.0,0.09700538]
[1737291997817,0.047566,105290.0,105280.0,0.0970054]
[1737291998407,0.047566,105290.0,105280.0,0.0494354]
[1737291998816,0.408366,105290.0,105280.0,0.0494354]
[1737291999408,0.047566,105290.0,105280.0,0.0494354]
[1737291999716,0.408366,105290.0,105280.0,0.04943559]
[1737291999922,0.408366,105290.0,105280.0,0.04646]
[1737292002019,0.55057298,105290.0,105280.0,0.04646]
[1737292002410,0.55057298,105290.0,105280.0,0.06032226]
[1737292002916,0.56428248,105290.0,105280.0,0.04646]
[1737292003215,0.047575,105270.0,105260.0,0.21426622]
[1737292003416,0.047575,105270.0,105260.0,0.17046622]
[1737292003716,0.14220698,105290.0,105280.0,0.04757]
[1737292003925,0.14220698,105290.0,105280.0,0.41134529]
[1737292004219,0.14220698,105290.0,105280.0,0.44933529]
[1737292004417,0.14220698,105290.0,105280.0,0.49073529]
[1737292004818,0.1,105300.0,105280.0,0.65977674]
[1737292005019,0.1,105300.0,105290.0,0.408366]
[1737292005318,0.1,105300.0,105290.0,0.41134129]
[1737292005715,0.1,105300.0,105290.0,0.41134108]
[1737292006312,0.28976798,105300.0,105290.0,0.41134108]
[1737292006913,0.28976798,105300.0,105290.0,0.41610098]
[1737292007507,0.28976798,105300.0,105290.0,0.43034235]
[1737292007919,0.147561,105300.0,105290.0,0.43034235]
[1737292008420,0.147561,105300.0,105290.0,0.01721645]
[1737292008919,0.508361,105300.0,105290.0,0.01424137]
[1737292009223,0.047566,105290.0,105280.0,0.03799]
[1737292009521,0.536066,105290.0,105280.0,0.04096553]
[1737292009818,0.175266,105290.0,105280.0,0.04096567]
[1737292010612,0.34557934,105290.0,105280.0,0.04096567]
[1737292011217,0.34557934,105290.0,105280.0,0.08853567]
[1737292011616,0.4879209,105290.0,105280.0,0.44933567]
[1737292011923,0.3602209,105290.0,105280.0,0.44933543]
[1737292012821,0.18990756,105290.0,105280.0,0.45409598]
[1737292013818,0.18990756,105290.0,105280.0,0.45409584]
[1737292014018,0.18990756,105290.0,105280.0,0.44933532]
[1737292015127,0.18990756,105290.0,105280.0,0.44944532]
[1737292016719,0.047566,105290.0,105280.0,0.44944532]
[1737292017129,0.408366,105290.0,105280.0,0.08567]
[1737292017925,0.55070756,105290.0,105280.0,0.08567]
[1737292018334,0.55070756,105290.0,105280.0,0.0381]
[1737292020944,0.57867934,105290.0,105280.0,0.0381]
[1737292021740,0.59264974,105290.0,105280.0,0.0381]
[1737292024239,0.57867934,105290.0,105280.0,0.0381]
[1737292026536,0.57867934,105290.0,105280.0,0.04107563]
[1737292026736,0.57867934,105290.0,105280.0,0.0381]
[1737292026948,0.57867934,105290.0,105280.0,0.04107562]
[1737292027346,0.5508096,105290.0,105280.0,0.04107562]
[1737292028751,0.408366,105290.0,105280.0,0.04107562]
[1737292029142,0.408366,105290.0,105280.0,0.0381]
[1737292029542,0.408366,105290.0,105280.0,0.0801]
[1737292029744,0.57931704,105290.0,105280.0,0.0801]
[1737292031041,0.408366,105290.0,105280.0,0.0801]
[1737292031240,0.408366,105290.0,105280.0,0.09385053]
[1737292031741,0.408366,105290.0,105280.0,0.09682604]
[1737292033244,0.57931727,105290.0,105280.0,0.09682604]
[1737292033439,0.57931727,105290.0,105280.0,0.09682601]
[1737292035146,0.57931727,105290.0,105280.0,0.14439601]
[1737292035341,0.57931727,105290.0,105280.0,0.14142053]
[1737292035648,0.57931727,105290.0,105280.0,0.14439602]
[1737292036553,0.55087537,105290.0,105280.0,0.14439602]
[1737292037255,0.55087537,105290.0,105280.0,0.14904681]
[1737292039044,0.72182664,105290.0,105280.0,0.14904681]
[1737292041660,0.55087537,105290.0,105280.0,0.31808826]
[1737292041959,0.55087537,105290.0,105280.0,0.22851826]
[1737292043053,0.408366,105290.0,105280.0,0.04572628]
[1737292043264,0.408366,105290.0,105280.0,0.03799]
[1737292043553,0.408366,105290.0,105280.0,0.04096566]
[1737292043757,0.408366,105290.0,105280.0,0.04572671]
[1737292044145,0.408366,105290.0,105280.0,0.04096566]
[1737292045460,0.408366,105290.0,105280.0,0.04096559]
[1737292046951,0.60795852,105290.0,105280.0,0.04096559]
[1737292048550,0.60795852,105290.0,105280.0,0.04572639]
[1737292048755,0.60795852,105290.0,105280.0,0.09329639]
[1737292049153,0.60795852,105290.0,105280.0,0.08556]
[1737292049358,0.56039252,105290.0,105280.0,0.09329628]
[1737292049558,0.56039252,105290.0,105280.0,0.13769628]
[1737292049763,0.53199516,105290.0,105280.0,0.13769615]
[1737292050549,0.57956116,105290.0,105280.0,0.13769615]
[1737292052559,0.55101749,105290.0,105280.0,0.53212621]
[1737292054066,0.19021749,105290.0,105280.0,0.53212621]
[1737292054267,0.19021749,105290.0,105280.0,0.89292621]
[1737292054567,0.14265149,105290.0,105280.0,0.89292621]
[1737292054964,0.14265149,105290.0,105280.0,0.89367667]
[1737292055160,0.41384665,105300.0,105290.0,0.047566]
[1737292055360,0.41384665,105300.0,105290.0,0.41610215]
[1737292055662,0.41384665,105300.0,105290.0,0.49930215]
[1737292056567,0.41384665,105300.0,105290.0,0.50005261]
[1737292056768,0.21407043,105300.0,105290.0,0.89438595]
[1737292057062,0.21407043,105300.0,105290.0,0.89363274]
[1737292057267,0.21407043,105300.0,105290.0,0.89438192]
[1737292057670,0.21407043,105300.0,105290.0,0.89438186]
[1737292057867,0.21407043,105300.0,105290.0,0.89363274]
[1737292058169,0.1,105300.0,105290.0,1.42248858]
[1737292058365,0.1,105300.0,105290.0,1.4308273]
[1737292058565,0.1,105300.0,105290.0,1.43007858]
[1737292058765,0.1,105300.0,105290.0,1.46881728]
[1737292059362,0.1,105300.0,105290.0,0.5456281]
[1737292060072,0.1,105300.0,105290.0,0.5448794]
[1737292060461,0.1,105300.0,105290.0,0.5456281]
[1737292060658,0.1,105300.0,105290.0,0.5448794]
[1737292060870,0.1,105300.0,105290.0,0.71344276]
[1737292061074,0.1,105300.0,105290.0,0.71344367]
[1737292061463,0.1,105300.0,105290.0,0.72760803]
[1737292061868,0.1,105300.0,105290.0,0.55904467]
[1737292063075,0.1,105300.0,105290.0,0.55904471]
[1737292065664,0.1,105300.0,105290.0,0.55904466]
[1737292066467,0.1,105300.0,105290.0,0.19824466]
[1737292066669,0.147561,105300.0,105290.0,0.11504466]
[1737292066978,0.147561,105300.0,105290.0,0.27587372]
[1737292067278,0.147561,105300.0,105290.0,0.23128287]
[1737292068071,0.508361,105300.0,105290.0,0.21711851]
[1737292068270,0.508361,105300.0,105290.0,0.04855515]
[1737292068271,0.62243143,105300.0,105290.0,0.04855515]
[1737292068471,0.62243143,105300.0,105290.0,0.03799]
[1737292069675,0.76508292,105300.0,105290.0,0.03799]
[1737292070889,0.65101249,105300.0,105290.0,0.03799]
[1737292071264,0.29021249,105300.0,105290.0,0.0409653]
[1737292071476,0.65101249,105300.0,105290.0,0.03799]
[1737292071878,0.29021249,105300.0,105290.0,0.03799]
[1737292072268,0.29021249,105300.0,105290.0,0.04096537]
[1737292072568,0.65101249,105300.0,105290.0,0.03799]
[1737292073776,0.82220765,105300.0,105290.0,0.03799]
[1737292074176,0.82220765,105300.0,105290.0,0.04748]
[1737292074881,0.67955616,105300.0,105290.0,0.04748]
[1737292075877,0.31875616,105300.0,105290.0,0.04748]
[1737292076080,0.31875616,105300.0,105290.0,0.05045531]
[1737292076281,0.67955616,105300.0,105290.0,0.05045531]
[1737292076479,0.67955616,105300.0,105290.0,0.05521581]
[1737292076778,0.67955616,105300.0,105290.0,0.05521582]
[1737292076979,0.67955616,105300.0,105290.0,0.05521583]
[1737292077180,0.67955616,105300.0,105290.0,0.05045532]
[1737292077480,0.67955616,105300.0,105290.0,0.05521586]
[1737292077681,0.8218608,105300.0,105290.0,0.04748]
[1737292079381,0.67955616,105300.0,105290.0,0.05521585]
[1737292079982,0.67955616,105300.0,105290.0,0.05045533]
[1737292080184,0.67955616,105300.0,105290.0,0.04748]
[1737292080371,0.67955616,105300.0,105290.0,0.05045533]
[1737292081377,0.67955616,105300.0,105290.0,0.0504553]
[1737292081674,0.67955616,105300.0,105290.0,0.05521577]
[1737292082183,0.76455651,105300.0,105290.0,0.05521577]
[1737292082485,0.76455651,105300.0,105290.0,0.05045529]
[1737292083680,0.76455651,105300.0,105290.0,0.05045535]
[1737292083885,0.76455651,105300.0,105290.0,0.04748]
[1737292084575,0.65069184,105300.0,105290.0,0.04748]
[1737292084973,0.047566,105290.0,105280.0,0.18374336]
[1737292085181,0.451766,105290.0,105280.0,0.16856336]
[1737292085980,0.047575,105270.0,105260.0,0.85500091]
[1737292086183,0.047575,105270.0,105260.0,0.86273799]
[1737292086386,0.047575,105270.0,105260.0,0.91031699]
[1737292087182,0.047575,105270.0,105260.0,0.68556584]
[1737292087378,0.047575,105270.0,105260.0,0.72356584]
[1737292088073,0.408375,105270.0,105260.0,0.22988684]
[1737292088684,0.408375,105270.0,105260.0,0.22214976]
[1737292088988,0.408375,105270.0,105260.0,0.22988725]
[1737292089380,0.408375,105270.0,105260.0,0.22512572]
[1737292089792,0.408375,105270.0,105260.0,0.05656236]
[1737292089991,0.408375,105270.0,105260.0,0.05513759]
[1737292090902,0.408375,105270.0,105260.0,0.06463759]
[1737292091094,0.408375,105270.0,105260.0,0.07223759]
[1737292092200,0.408375,105270.0,105260.0,0.0722376]
[1737292094198,0.408375,105270.0,105260.0,0.07223765]
[1737292094392,0.408375,105270.0,105260.0,0.07699929]
[1737292094793,0.408375,105270.0,105260.0,0.07223765]
[1737292095000,0.52221145,105270.0,105260.0,0.07223765]
[1737292095601,0.56251145,105270.0,105260.0,0.07223796]
[1737292095796,0.56251145,105270.0,105260.0,0.06926163]
[1737292095996,0.56251145,105270.0,105260.0,0.06166163]
[1737292096296,0.56251145,105270.0,105260.0,0.064638]
[1737292096502,0.61987016,105270.0,105260.0,0.0694001]
[1737292097200,0.61987016,105270.0,105260.0,0.064638]
[1737292097397,0.61987016,105270.0,105260.0,0.0694001]
[1737292097597,0.61987016,105270.0,105260.0,0.064638]
[1737292097993,0.61987016,105270.0,105260.0,0.06940003]
[1737292098194,0.55078933,105270.0,105260.0,0.0693999]
[1737292098499,0.55078933,105270.0,105260.0,0.06939992]
[1737292098805,0.55078933,105270.0,105260.0,0.06463789]
[1737292099102,0.55078933,105270.0,105260.0,0.06939992]
[1737292099303,0.55078933,105270.0,105260.0,0.0693999]
[1737292099606,0.72198449,105270.0,105260.0,0.1098999]
[1737292100997,0.30389169,105270.0,105260.0,0.5182789]
[1737292101193,0.25631669,105270.0,105260.0,0.5182789]
[1737292101801,0.25631669,105270.0,105260.0,0.51902823]
[1737292102102,0.30388869,105280.0,105270.0,0.047575]
[1737292102401,0.30388869,105280.0,105270.0,0.50031327]